bitfinex-derivatives/quotes_SOLF0:USTF0_20260310
["timestamp","ask_amount","ask_price","bid_price","bid_amount"]
[1773170000431,10.477,85.898,85.851,4.04591462]
[1773170001127,2.90959336,85.897,85.851,4.04591462]
[1773170001322,10.477,85.898,85.86,10.481]
[1773170002431,3.46755914,85.89,85.851,4.04591462]
[1773170003032,10.478,85.889,85.851,4.04591462]
[1773170004433,3.46755914,85.89,85.851,4.04591462]
[1773170004631,3.46755914,85.89,85.84,3.46755914]
[1773170004632,3.46755914,85.89,85.854,4.07004652]
[1773170006330,0.03448543,85.897,85.857,4.07004652]
[1773170007036,3.46755914,85.9,85.857,4.07004652]
[1773170007236,3.46755914,85.89,85.858,10.481]
[1773170007536,3.46987273,85.89,85.858,10.481]
[1773170007931,10.477,85.898,85.858,14.5598769]
[1773170008835,3.46987273,85.89,85.858,14.5598769]
[1773170009737,10.54113195,85.938,85.866,10.48]
[1773170009738,10.476,85.906,85.866,10.48]
[1773170010037,3.46987273,85.9,85.866,10.48]
[1773170011134,3.46987273,85.9,85.872,4.10565215]
[1773170011342,3.46987273,85.91,85.872,4.10565215]
[1773170011538,10.474,85.917,85.872,4.10565215]
[1773170011735,10.475,85.912,85.872,4.10565215]
[1773170011935,2.90930573,85.911,85.872,4.10565215]
[1773170012136,10.475,85.912,85.872,4.10565215]
[1773170012331,6.87254368,85.92,85.872,4.10565215]
[1773170012536,3.46987273,85.91,85.874,10.479]
[1773170015038,10.475,85.914,85.874,14.45400898]
[1773170015234,3.46987273,85.91,85.874,14.45400898]
[1773170015433,3.46987273,85.91,85.875,3.97500898]
[1773170015636,10.475,85.914,85.875,3.97500898]
[1773170015834,3.46987273,85.93,85.877,3.97500898]
[1773170016043,2.90896735,85.929,85.877,3.97500898]
[1773170016344,2.90896735,85.928,85.877,3.97500898]
[1773170016543,10.473,85.925,85.885,14.45300898]
[1773170016739,2.90896735,85.924,85.885,14.45300898]
[1773170017038,3.46987273,85.92,85.885,3.97500898]
[1773170018252,3.46987273,85.92,85.887,10.478]
[1773170018647,3.46987273,85.92,85.885,3.97500898]
[1773170019952,10.474,85.919,85.885,3.97500898]
[1773170021054,3.46987273,85.9,85.851,3.97500898]
[1773170021652,10.476,85.899,85.859,10.481]
[1773170021855,2.90985109,85.898,85.859,10.481]
[1773170022151,3.46987273,85.9,85.859,10.481]
[1773170022354,2.90985281,85.899,85.859,10.481]
[1773170022554,2.90985281,85.898,85.859,10.481]
[1773170022755,3.46987273,85.9,85.859,10.481]
[1773170022952,2.90985296,85.899,85.859,10.481]
[1773170023152,2.90985296,85.898,85.859,10.481]
[1773170023455,3.46987273,85.9,85.859,14.45600898]
[1773170023754,10.477,85.897,85.859,3.97500898]
[1773170024451,3.46987273,85.88,85.831,3.97500898]
[1773170024655,2.91052923,85.879,85.831,3.97500898]
[1773170024856,3.46987273,85.88,85.831,3.97500898]
[1773170025052,2.91053103,85.879,85.831,3.97500898]
[1773170025358,3.46987273,85.9,85.841,3.97500898]
[1773170025552,2.91001739,85.899,85.841,3.97500898]
[1773170025754,2.91001739,85.898,85.841,3.97500898]
[1773170025958,2.91001739,85.897,85.841,3.97500898]
[1773170026154,2.91001739,85.896,85.841,3.97500898]
[1773170026355,10.478,85.89,85.855,10.482]
[1773170027059,13.94787273,85.89,85.852,3.97500898]
[1773170030659,3.46987273,85.89,85.854,4.02647908]
[1773170030853,2.91005435,85.896,85.854,4.02647908]
[1773170031063,2.91005435,85.895,85.854,4.02647908]
[1773170031263,10.477,85.895,85.856,4.02647908]
[1773170031856,3.46987273,85.91,85.861,4.02647908]
[1773170032264,3.46987273,85.9,85.861,4.02647908]
[1773170032761,3.46987273,85.91,85.863,4.02647908]
[1773170033065,3.45663649,85.914,85.803,293.0]
[1773170033066,3.45663649,85.914,85.871,4.02647908]
[1773170033461,10.475,85.907,85.871,4.02647908]
[1773170033657,3.50044652,85.899,85.851,4.02647908]
[1773170033865,3.46987273,85.89,85.851,4.02647908]
[1773170035366,3.50044652,85.899,85.853,4.02647908]
[1773170036168,10.477,85.898,85.853,4.02647908]
[1773170036370,3.46987273,85.91,85.853,4.02647908]
[1773170036572,2.90978035,85.909,85.853,4.02647908]
[1773170036768,7.01202274,85.91,85.853,4.02647908]
[1773170036769,2.90978035,85.908,85.853,4.02647908]
[1773170036968,2.90978035,85.907,85.853,4.02647908]
[1773170037167,2.90978035,85.906,85.853,4.02647908]
[1773170037364,2.90978035,85.905,85.862,14.50747908]
[1773170037562,2.90978035,85.904,85.862,14.50747908]
[1773170037768,10.476,85.906,85.863,4.02647908]
[1773170037962,2.90956866,85.905,85.867,4.02647908]
[1773170038164,3.54215001,85.91,85.867,4.02647908]
[1773170038366,3.54215001,85.91,85.871,4.02647908]
[1773170038564,2.90931694,85.909,85.871,4.02647908]
[1773170038770,3.54215001,85.91,85.871,4.02647908]
[1773170038970,2.90935366,85.909,85.871,4.02647908]
[1773170039272,3.54215001,85.91,85.871,4.02647908]
[1773170039471,2.90935366,85.909,85.872,4.02647908]
[1773170039673,10.475,85.914,85.872,4.02647908]
[1773170039869,2.90928022,85.913,85.872,4.02647908]
[1773170040070,2.90928022,85.912,85.872,4.02647908]
[1773170040267,3.46987273,85.92,85.874,14.50547908]
[1773170040572,3.46987273,85.92,85.87,3.46987273]
[1773170040573,3.50611665,85.918,85.875,4.02647908]
[1773170040769,2.9092293,85.917,85.875,4.02647908]
[1773170040974,2.9092293,85.916,85.875,4.02647908]
[1773170041174,2.9092293,85.915,85.875,4.02647908]
[1773170041369,2.9092293,85.914,85.875,4.02647908]
[1773170041575,3.50611665,85.918,85.875,4.02647908]
[1773170041576,13.3842293,85.913,85.876,10.479]
[1773170041775,10.475,85.913,85.876,10.479]
[1773170042471,3.50611665,85.918,85.879,4.02647908]
[1773170042667,10.474,85.92,85.879,4.02647908]
[1773170042870,2.90894388,85.919,85.88,3.46987273]
[1773170043074,3.46036152,85.945,85.895,4.02647908]
[1773170043276,2.90848171,85.944,85.895,4.02647908]
[1773170043476,10.471,85.941,85.901,4.02647908]
[1773170043669,10.471,85.941,85.832,34.93]
[1773170043670,3.46987273,85.97,85.911,4.02647908]
[1773170043873,6.36817022,85.969,85.911,4.02647908]
[1773170044074,3.46036152,85.98,85.938,4.02647908]
[1773170044271,10.466,85.983,85.938,4.02647908]
[1773170044577,3.39495934,86.01,85.965,10.468]
[1773170044777,3.39495934,86.024,85.971,4.02647908]
[1773170044976,2.9062788,86.023,85.971,4.02647908]
[1773170045173,3.39495934,86.019,85.971,4.02647908]
[1773170045477,3.46987273,86.03,85.971,4.02647908]
[1773170045772,3.39495934,86.033,85.982,10.466]
[1773170045979,3.39495934,86.033,85.983,4.02647908]
[1773170046474,3.46987273,86.03,85.983,4.02647908]
[1773170046678,3.46987273,86.03,85.986,4.02647908]
[1773170047274,3.45378611,86.048,85.991,4.02647908]
[1773170047472,3.45378611,86.063,86.011,4.02647908]
[1773170047674,3.45378611,86.063,86.01,3.46987273]
[1773170047675,3.46987273,86.08,86.031,4.02647908]
[1773170048073,3.46987273,86.07,86.031,4.02647908]
[1773170048281,3.46987273,86.06,86.013,10.462]
[1773170048484,3.45378611,86.069,86.014,4.02647908]
[1773170048677,3.4699213,86.087,86.031,4.02647908]
[1773170048883,3.46987273,86.09,86.041,4.02647908]
[1773170049275,3.46987273,86.09,86.034,10.46]
[1773170049276,3.46987273,86.07,86.025,4.02647908]
[1773170049482,3.46987273,86.08,86.025,4.02647908]
[1773170049681,3.4699213,86.084,86.025,4.02647908]
[1773170050386,3.4699213,86.099,86.039,4.02647908]
[1773170050879,3.4699213,86.099,86.041,4.02647908]
[1773170051081,3.4699213,86.099,85.97,4.02647908]
[1773170051281,3.4699213,86.099,86.001,4.02647908]
[1773170051676,3.48767932,86.097,86.03,4.02647908]
[1773170052281,9.25427985,86.1,86.03,4.02647908]
[1773170052282,3.48767932,86.083,86.03,4.02647908]
[1773170052586,2.02202144,86.139,85.98,9.25427985]
[1773170052587,3.47573525,86.079,86.014,4.02647908]
[1773170052782,3.47573525,86.078,86.015,4.02647908]
[1773170054486,3.47573525,86.078,86.017,4.02647908]
[1773170054877,3.47573525,86.078,86.021,4.02647908]
[1773170055080,10.453,86.09,86.021,4.02647908]
[1773170055279,3.52460781,86.089,86.021,4.02647908]
[1773170056191,10.455,86.077,86.021,4.02647908]
[1773170057292,10.455,86.077,86.023,4.02647908]
[1773170057791,3.54274198,86.071,86.001,4.02647908]
[1773170057984,3.54274198,86.071,86.012,14.48947908]
[1773170058182,3.54274198,86.087,86.013,4.02647908]
[1773170058786,3.55759111,86.085,86.026,4.02647908]
[1773170058992,3.55759111,86.079,85.981,4.02647908]
[1773170059385,3.5548295,86.07,86.006,4.02458921]
[1773170059789,3.55468371,86.086,86.006,4.02458921]
[1773170060191,10.454,86.081,86.019,4.02458921]
[1773170060694,3.55468371,86.086,86.029,4.02458921]
[1773170061297,10.455,86.075,86.029,4.02458921]
[1773170065097,10.456,86.067,86.029,4.02458921]
[1773170067098,10.457,86.062,86.015,10.462]
[1773170067301,3.49518749,86.059,85.99,4.02458921]
[1773170068300,3.49518749,86.059,86.0,4.02458921]
[1773170069004,3.51174493,86.074,86.0,4.02458921]
[1773170069204,10.456,86.066,86.018,4.02458921]
[1773170070403,10.456,86.066,86.02,4.02458921]
[1773170070798,10.456,86.063,86.02,4.02458921]
[1773170071599,3.45555586,86.07,86.021,4.02458921]
[1773170071806,6.97635403,86.08,86.031,4.02458921]
[1773170072009,3.52079817,86.079,86.031,4.02458921]
[1773170072510,3.45555586,86.1,86.041,4.02458921]
[1773170073006,3.45555586,86.09,86.042,4.02458921]
[1773170073208,3.45555586,86.06,86.026,4.02458921]
[1773170073604,3.45555586,86.07,86.026,4.02458921]
[1773170073806,3.52694997,86.079,86.026,4.02458921]
[1773170074006,3.45555586,86.07,86.026,4.02458921]
[1773170074209,3.45555586,86.07,85.97,20.936]
[1773170074210,3.52694997,86.079,86.031,4.02458921]
[1773170074403,3.45555586,86.09,86.031,4.02458921]
[1773170074706,10.455,86.079,86.035,4.02458921]
[1773170077208,10.455,86.072,86.035,4.02458921]
[1773170079308,10.455,86.079,86.035,4.02458921]
[1773170080312,10.455,86.073,86.035,4.02458921]
[1773170081811,13.90955586,86.08,86.037,10.46]
[1773170085509,13.90955586,86.08,86.039,10.459]
[1773170085817,13.90955586,86.08,86.039,14.48358921]
[1773170086703,3.3811232,86.079,86.039,4.02458921]
[1773170086913,3.45555586,86.07,86.025,3.85827379]
[1773170087109,3.45555586,86.08,86.025,3.85827379]
[1773170087315,10.456,86.067,86.032,3.85827379]
[1773170088110,2.90368951,86.066,86.032,3.85827379]
[1773170088310,2.90368951,86.065,86.032,3.85827379]
[1773170088508,2.90368951,86.064,86.032,3.85827379]
[1773170088708,2.90368951,86.063,86.032,3.85827379]
[1773170089011,2.90368951,86.062,86.032,3.85827379]
[1773170089207,2.90368951,86.061,86.032,3.85827379]
[1773170089418,2.90368951,86.06,86.032,3.85827379]
[1773170089713,2.90368951,86.059,86.032,3.85827379]
[1773170089912,2.90368951,86.058,86.032,3.85827379]
[1773170090108,2.90368951,86.057,86.032,3.85827379]
[1773170090314,2.90368951,86.056,86.033,10.46]
[1773170090515,2.90368951,86.055,86.033,10.46]
[1773170090706,2.90368951,86.054,86.033,10.46]
[1773170090909,2.90368951,86.053,86.033,10.46]
[1773170091111,2.90368951,86.052,86.033,10.46]
[1773170091317,3.3811232,86.084,86.039,3.75707559]
[1773170091318,10.454,86.082,86.039,3.75707559]
[1773170091517,8.78179482,86.081,86.039,3.75707559]
[1773170091717,8.78179482,86.08,86.039,3.75707559]
[1773170092017,8.78179482,86.079,86.039,3.75707559]
[1773170092211,8.79442492,86.078,86.039,3.75707559]
[1773170092413,8.79442492,86.077,86.041,10.459]
[1773170092611,8.79442492,86.076,86.041,10.459]
[1773170092807,8.79442492,86.075,86.039,3.75707559]
[1773170093006,10.456,86.068,86.039,3.75707559]
[1773170094018,3.3811232,86.084,86.039,3.75707559]
[1773170094216,3.39216361,86.079,86.008,3.75707559]
[1773170094419,8.7867418,86.078,86.021,3.75707559]
[1773170094619,8.7867418,86.077,86.031,3.75707559]
[1773170094819,3.39216361,86.079,86.031,3.75707559]
[1773170095021,10.456,86.066,86.031,3.75707559]
[1773170096917,10.457,86.061,86.031,3.75707559]
[1773170097317,10.456,86.068,86.031,3.75707559]
[1773170097915,3.45555586,86.05,86.005,3.75707559]
[1773170098119,3.45555586,86.04,86.005,3.75707559]
[1773170098421,3.41853526,86.049,86.005,3.75707559]
[1773170098624,3.42903426,86.062,86.02,7.21263145]
[1773170098819,3.45555586,86.06,86.02,3.75707559]
[1773170099020,3.42903426,86.059,86.02,3.75707559]
[1773170099320,10.457,86.056,86.02,3.75707559]
[1773170099725,3.42903426,86.059,86.021,10.461]
[1773170100625,13.91155586,86.07,86.029,3.75707559]
[1773170100813,13.91155586,86.07,85.953,162.871]
[1773170100814,6.92208884,86.1,86.041,3.75707559]
[1773170101014,3.45555586,86.11,86.061,3.75707559]
[1773170101217,3.46653298,86.115,86.07,3.45555586]
[1773170101419,8.78874353,86.114,86.07,3.45555586]
[1773170101623,3.46653298,86.115,86.07,3.45555586]
[1773170101824,3.45555586,86.11,86.061,3.75707559]
[1773170102026,3.45555586,86.09,86.041,3.75707559]
[1773170102621,3.45555586,86.06,86.022,3.75707559]
[1773170103823,3.45555586,86.07,86.022,3.75707559]
[1773170104420,10.457,86.061,86.022,3.75707559]
[1773170104821,3.45555586,86.06,86.022,3.75707559]
[1773170105020,3.53680271,86.059,86.016,10.462]
[1773170105326,3.45555586,86.06,86.02,10.462]
[1773170106120,3.45555586,86.06,86.017,3.75707559]
[1773170106121,3.45555586,86.06,86.027,10.461]
[1773170106314,3.45555586,86.08,86.03,3.45555586]
[1773170106515,3.45555586,86.08,86.031,3.75707559]
[1773170106926,10.455,86.074,86.033,3.75707559]
[1773170107423,3.5397927,86.069,86.02,3.45555586]
[1773170107818,3.5397927,86.069,86.021,3.75707559]
[1773170108015,3.5397927,86.069,86.031,10.46]
[1773170108420,3.5397927,86.069,86.021,3.75707559]
[1773170108723,13.9957927,86.069,86.031,10.46]
[1773170108923,10.456,86.069,86.032,3.75707559]
[1773170109124,3.55621797,86.086,86.032,3.75707559]
[1773170109423,12.32489389,86.101,86.05,3.45555586]
[1773170109623,3.45555586,86.1,86.051,3.75707559]
[1773170110927,3.45555586,86.09,86.04,3.45555586]
[1773170111125,3.45555586,86.09,86.041,3.75707559]
[1773170111525,10.453,86.089,86.044,10.459]
[1773170112826,3.45555586,86.1,86.052,3.75707559]
[1773170113222,3.45555586,86.1,86.014,20.925]
[1773170113223,8.76867592,86.113,86.061,3.75707559]
[1773170113425,8.77136544,86.119,86.071,3.75707559]
[1773170113629,3.73044763,86.128,86.071,3.75707559]
[1773170113828,3.73044763,86.109,86.053,3.75707559]
[1773170114322,10.451,86.107,86.061,10.457]
[1773170115323,3.45555586,86.1,86.061,10.457]
[1773170115525,3.45555586,86.09,86.04,7.21263145]
[1773170115729,3.74131238,86.099,86.041,3.75707559]
[1773170116432,7.19686824,86.09,86.041,3.75707559]
[1773170116829,10.454,86.087,86.042,10.459]
[1773170117029,3.45555586,86.08,86.041,3.75707559]
[1773170117231,3.45555586,86.08,86.03,3.45555586]
[1773170117725,3.73827709,86.071,86.026,3.75707559]
[1773170118031,3.45555586,86.07,86.021,3.75707559]
[1773170118936,3.45555586,86.08,86.021,3.75707559]
[1773170119838,10.455,86.077,86.037,10.46]
[1773170122024,10.455,86.077,86.031,4.06749606]
[1773170123125,3.69105676,86.089,86.045,10.459]
[1773170123835,3.45555586,86.07,86.021,4.06749606]
[1773170124025,3.69409001,86.079,86.021,4.06749606]
[1773170124535,10.454,86.087,86.043,4.06749606]
[1773170125234,10.454,86.08,86.043,4.06749606]
[1773170125436,3.69612735,86.069,86.02,3.45555586]
[1773170125634,3.69612735,86.069,86.013,4.06749606]
[1773170126030,3.69612735,86.069,86.029,10.461]
[1773170126235,3.69612735,86.069,85.992,20.931]
[1773170126236,3.45555586,86.08,86.031,4.06749606]
[1773170126436,3.45555586,86.07,86.031,4.06749606]
[1773170126838,3.45555586,86.07,86.032,10.46]
[1773170127833,10.455,86.076,86.038,10.459]
[1773170128036,12.21420634,86.1,86.051,4.06749606]
[1773170128232,3.68997983,86.109,86.051,4.06749606]
[1773170129138,3.68997983,86.109,86.06,3.45555586]
[1773170129337,10.451,86.106,86.064,10.456]
[1773170129542,3.68997983,86.109,86.061,4.06749606]
[1773170130436,3.68997983,86.109,86.071,10.455]
[1773170131435,10.45,86.114,86.071,10.455]
[1773170131837,10.449,86.122,86.077,4.06749606]
[1773170133444,10.449,86.122,86.078,10.455]
[1773170133641,10.449,86.122,86.079,4.06749606]
[1773170134243,14.08183158,86.122,86.079,4.06749606]
[1773170134836,3.63740102,86.137,86.081,4.06749606]
[1773170135334,3.63740102,86.151,86.098,10.452]
[1773170135635,10.447,86.137,86.095,4.06749606]
[1773170136437,10.448,86.13,86.08,4.06749606]
[1773170136637,3.72291486,86.151,86.08,4.06749606]
[1773170137039,453.94923918,86.145,86.08,4.06749606]
[1773170137944,3.72291486,86.144,86.08,4.06749606]
[1773170138244,3.72291486,86.144,86.088,14.52049606]
[1773170138440,3.72291486,86.144,86.061,4.06749606]
[1773170139541,3.72291486,86.144,86.03,20.921]
[1773170139542,3.72291486,86.144,86.081,4.06749606]
[1773170139943,10.447,86.142,86.094,14.52049606]
[1773170141347,10.447,86.142,86.07,9.2467902]
[1773170141348,3.72595907,86.136,86.079,4.06749606]
[1773170141548,3.72595907,86.136,86.051,4.06749606]
[1773170143549,10.449,86.124,86.077,10.455]
[1773170144253,10.449,86.124,86.084,10.454]
[1773170144859,10.449,86.124,86.084,14.52149606]
[1773170145051,3.61743108,86.15,86.088,4.06749606]
[1773170146245,3.61743108,86.146,86.087,4.06749606]
[1773170146446,3.61743108,86.146,86.072,4.02377533]
[1773170146654,3.57617288,86.139,86.072,4.02377533]
[1773170146847,10.45,86.116,86.073,10.455]
[1773170147046,3.57617288,86.115,86.041,4.02377533]
[1773170147554,3.57617288,86.13,86.063,4.02377533]
[1773170148954,3.51742264,86.11,86.063,4.02377533]
[1773170149150,3.51742264,86.11,86.041,4.02377533]
[1773170149753,3.51844147,86.094,86.041,4.02377533]
[1773170151056,10.453,86.093,86.054,10.457]
[1773170151654,10.452,86.101,86.061,3.85256474]
[1773170154160,3.44867624,86.093,86.033,3.85256474]
[1773170154355,3.44867624,86.093,86.001,3.85256474]
[1773170154659,10.456,86.065,86.001,3.85256474]
[1773170154857,3.46641212,86.079,86.021,10.462]
[1773170155560,3.46641212,86.079,86.014,3.85256474]
[1773170155758,3.46641212,86.079,85.99,9.2467902]
[1773170155759,3.46641212,86.079,85.991,3.85256474]
[1773170156555,10.457,86.058,86.012,10.463]
[1773170157159,3.46641212,86.061,85.997,3.85256474]
[1773170157460,3.41520015,86.078,85.997,3.85256474]
[1773170157951,3.41520015,86.078,85.99,9.2467902]
[1773170157952,13.87020015,86.078,86.028,3.85256474]
[1773170158152,3.41520015,86.078,86.028,3.85256474]
[1773170158553,3.42718162,86.109,86.028,3.85256474]
[1773170158753,10.454,86.08,86.032,3.85256474]
[1773170159157,3.42718162,86.094,86.032,3.85256474]
[1773170160262,13.88018162,86.088,86.043,3.85256474]
[1773170160665,3.42718162,86.088,86.043,3.85256474]
[1773170161067,3.42718162,86.088,86.011,3.85256474]
[1773170161258,13.85655866,86.086,86.035,10.46]
[1773170161466,13.85655866,86.086,86.036,3.85256474]
[1773170161656,3.40255866,86.085,86.011,3.85256474]
[1773170161858,10.455,86.075,86.021,3.85256474]
[1773170162060,3.40255866,86.085,86.021,3.85256474]
[1773170162260,10.454,86.083,86.041,10.459]
[1773170164366,10.453,86.09,86.044,10.459]
[1773170166071,10.453,86.09,86.042,3.85256474]
[1773170166072,3.34362631,86.117,86.051,3.85256474]
[1773170166565,3.34362631,86.117,86.072,10.455]
[1773170166968,3.34364481,86.149,86.066,3.85256474]
[1773170168076,3.34364481,86.149,86.086,3.85256474]
[1773170169372,10.447,86.144,86.093,10.453]
[1773170170377,3.34649571,86.129,86.053,3.85256474]
[1773170171382,3.32914046,86.111,86.059,14.30956474]
[1773170171882,10.451,86.109,86.059,14.30956474]
[1773170172071,3.32914046,86.129,86.065,3.85256474]
[1773170172276,10.449,86.125,86.065,3.85256474]
[1773170172476,9.2467902,86.15,86.065,3.85256474]
[1773170172477,3.32154913,86.145,86.065,3.85256474]
[1773170172874,10.448,86.133,86.06,9.2467902]
[1773170173078,10.448,86.133,86.076,3.85256474]
[1773170173281,3.32154913,86.145,86.076,3.85256474]
[1773170173472,10.449,86.126,86.076,3.85256474]
[1773170173672,3.32154913,86.145,86.076,3.85256474]
[1773170174880,10.448,86.133,86.084,3.85256474]
[1773170175080,3.32154913,86.145,86.084,3.85256474]
[1773170175677,10.448,86.135,86.084,3.85256474]
[1773170175980,3.32154913,86.145,86.084,3.85256474]
[1773170176279,3.32154913,86.145,86.106,10.451]
[1773170176579,10.446,86.152,86.106,10.451]
[1773170176986,10.445,86.159,86.112,10.45]
[1773170177182,3.23737997,86.161,86.098,3.85256474]
[1773170178374,3.23737997,86.149,86.081,3.85256474]
[1773170179486,10.449,86.129,86.084,10.454]
[1773170181085,10.449,86.123,86.081,3.85256474]
[1773170181680,3.24380761,86.149,86.083,4.06925222]
[1773170183382,10.448,86.132,86.093,10.453]
[1773170184384,10.448,86.132,86.061,20.914]
[1773170184385,3.2463105,86.125,86.061,4.06925222]
[1773170184686,3.2284048,86.149,86.061,4.06925222]
[1773170184886,10.448,86.135,86.097,10.452]
[1773170185187,3.2284048,86.135,86.079,4.04018207]
[1773170185685,10.449,86.128,86.079,4.04018207]
[1773170186077,3.2284048,86.135,86.079,4.04018207]
[1773170186886,3.22330813,86.12,86.064,4.04018207]
[1773170187287,10.447,86.139,86.091,10.453]
[1773170187681,10.447,86.139,86.091,14.49318207]
[1773170187883,3.22330813,86.138,86.074,4.04018207]
[1773170188685,10.449,86.127,86.087,10.453]
[1773170189086,3.22330813,86.138,86.074,4.04018207]
[1773170190292,10.447,86.143,86.095,4.04018207]
[1773170190890,10.446,86.15,86.095,4.04018207]
[1773170191289,3.23038418,86.153,86.062,20.913]
[1773170191290,3.23795873,86.168,86.115,4.04018207]
[1773170191486,9.24192353,86.2,86.115,4.04018207]
[1773170191690,3.23795873,86.199,86.115,4.04018207]
[1773170191888,10.443,86.174,86.119,4.04018207]
[1773170192386,13.68295873,86.158,86.101,4.04018207]
[1773170192587,3.22813416,86.175,86.101,4.04018207]
[1773170193091,3.22813416,86.175,86.112,4.04018207]
[1773170193690,3.22813416,86.175,86.128,4.04018207]
[1773170194290,10.443,86.174,86.128,4.04018207]
[1773170194494,3.22813416,86.175,86.128,4.04018207]
[1773170194891,3.22813416,86.175,86.101,4.04018207]
[1773170195592,9.24192353,86.18,86.101,4.04018207]
[1773170195593,10.446,86.153,86.101,4.04018207]
[1773170196391,10.446,86.153,86.102,10.452]
[1773170197190,3.2640509,86.154,86.08,9.24192353]
[1773170197191,10.445,86.16,86.111,14.49118207]
[1773170197395,10.445,86.16,86.038,28.76117623]
[1773170197396,3.26403665,86.187,86.112,4.04018207]
[1773170198393,3.26403665,86.187,86.124,4.04018207]
[1773170198394,10.443,86.171,86.124,4.04018207]
[1773170199693,10.442,86.18,86.129,14.48818207]
[1773170200196,3.26403665,86.187,86.107,4.04018207]
[1773170200396,3.26028726,86.179,86.107,4.04018207]
[1773170201598,3.26028726,86.179,86.09,13.2821056]
[1773170201796,3.27605891,86.159,86.09,4.04018207]
[1773170202100,3.27605891,86.159,86.094,4.04018207]
[1773170202997,10.447,86.142,86.1,10.452]
[1773170203296,3.27605891,86.159,86.1,14.49218207]
[1773170203496,10.446,86.15,86.1,14.49218207]
[1773170204795,3.2621999,86.149,86.09,10.453]
[1773170204990,3.2621999,86.171,86.091,4.04018207]
[1773170205190,3.2621999,86.171,86.125,10.449]
[1773170205393,3.2621999,86.209,86.118,4.04018207]
[1773170206096,10.442,86.184,86.139,10.447]
[1773170206400,10.442,86.184,86.14,4.04018207]
[1773170207299,3.27559394,86.209,86.143,3.69052176]
[1773170207799,10.44,86.2,86.149,3.69052176]
[1773170208093,3.27559394,86.209,86.149,3.69052176]
[1773170208395,10.44,86.202,86.156,10.445]
[1773170208599,3.27559394,86.209,86.149,3.69052176]
[1773170209199,3.26230186,86.231,86.152,3.69052176]
[1773170209903,293.96893271,86.22,86.165,10.444]
[1773170210100,293.96893271,86.22,86.166,3.75405209]
[1773170210993,10.438,86.212,86.166,3.75405209]
[1773170212596,13.65549258,86.205,86.152,10.446]
[1773170212802,13.65549258,86.205,86.153,3.75405209]
[1773170213000,10.439,86.205,86.153,3.75405209]
[1773170213398,10.438,86.214,86.163,3.75405209]
[1773170213600,286.74742529,86.22,86.163,3.75405209]
[1773170214505,286.74742529,86.22,86.166,3.75405209]
[1773170215402,10.437,86.224,86.169,3.75405209]
[1773170216210,13.65447581,86.224,86.169,3.75405209]
[1773170216509,3.21747581,86.214,86.151,3.75405209]
[1773170218307,10.439,86.21,86.161,10.444]
[1773170218709,10.439,86.21,86.151,3.75405209]
[1773170219410,13.6170426,86.203,86.153,10.445]
[1773170219710,3.1780426,86.203,86.151,3.75405209]
[1773170219915,10.44,86.195,86.151,3.75405209]
[1773170220216,3.1780426,86.203,86.151,3.75405209]
[1773170220417,3.1780426,86.229,86.151,3.75405209]
[1773170220716,3.1780426,86.229,86.167,3.75405209]
[1773170221110,10.438,86.213,86.167,3.75405209]
[1773170222112,10.437,86.221,86.169,3.75405209]
[1773170222317,3.17804986,86.249,86.171,3.75405209]
[1773170222518,3.14412634,86.269,86.191,3.75405209]
[1773170223014,3.14412634,86.289,86.225,3.75405209]
[1773170223316,3.14412634,86.326,86.231,3.75405209]
[1773170223612,3.14412634,86.291,86.231,3.75405209]
[1773170224112,3.14412634,86.291,86.214,3.75405209]
[1773170224316,3.14412634,86.289,86.214,3.75405209]
[1773170225112,13.52231183,86.26,86.191,3.75405209]
[1773170225719,3.08931183,86.26,86.191,3.75405209]
[1773170226111,3.08931183,86.26,86.214,10.438]
[1773170226418,3.08931183,86.26,86.211,3.75405209]
[1773170226614,3.08931183,86.26,86.171,3.75405209]
[1773170226818,3.05134913,86.287,86.211,3.75405209]
[1773170227017,3.05134913,86.279,86.181,3.75405209]
[1773170227318,3.05134913,86.257,86.2,10.44]
[1773170227513,3.05134913,86.257,86.18,9.24192353]
[1773170227514,3.05134913,86.257,86.196,3.75405209]
[1773170227714,3.05134913,86.257,86.18,3.75405209]
[1773170227918,10.434,86.244,86.18,3.75405209]
[1773170229308,10.434,86.244,86.19,10.441]
[1773170229720,10.435,86.236,86.18,3.75405209]
[1773170230219,2.98300544,86.244,86.189,3.75405209]
[1773170230618,13.40519849,86.242,86.189,3.75405209]
[1773170231320,10.434,86.251,86.192,3.75405209]